bitfinex/quotes_SOLUSD_20240614
["timestamp","ask_amount","ask_price","bid_price","bid_amount"]
[1718395003835,8.669708,141.74,141.65,0.68]
[1718395004033,2.6106,141.73,141.7,13.0553]
[1718395004243,8.4,141.71,141.7,2.611]
[1718395004555,8.4,141.71,141.69,26.1121]
[1718395004724,8.4,141.7,141.69,26.1121]
[1718395005754,2.6107,141.72,141.7,2.6111]
[1718395005938,8.4,141.71,141.7,2.6111]
[1718395006850,26.1062,141.73,141.7,2.6111]
[1718395007157,0.838308,141.74,141.72,2.6107]
[1718395007329,11.0106,141.73,141.7,26.1104]
[1718395007533,8.4,141.71,141.7,26.1104]
[1718395012349,8.4,141.71,141.69,2.6111]
[1718395012556,2.6108,141.72,141.7,2.6111]
[1718395012870,8.4,141.71,141.69,26.1127]
[1718395013151,8.4,141.7,141.69,26.1127]
[1718395015969,8.4,141.7,141.68,2.6113]
[1718395016137,8.4,141.69,141.67,23.5043]
[1718395016341,8.4,141.68,141.67,26.1158]
[1718395021859,2.6106,141.73,141.7,13.0555]
[1718395022042,8.4,141.71,141.7,26.1111]
[1718395022358,8.4,141.71,141.7,7.8332]
[1718395022562,8.4,141.71,141.7,2.6111]
[1718395024471,8.4,141.71,141.69,23.5011]
[1718395024669,26.1064,141.73,141.7,2.6111]
[1718395024873,8.4,141.71,141.7,2.6111]
[1718395025177,8.4,141.71,141.69,23.5011]
[1718395025178,8.4,141.71,141.69,26.1122]
[1718395026252,8.4,141.71,141.69,23.5011]
[1718395026551,0.838308,141.74,141.72,2.6107]
[1718395026772,8.4,141.73,141.71,7.8327]
[1718395026980,8.4,141.72,141.66,0.17]
[1718395027182,8.4,141.7,141.69,2.6112]
[1718395027476,8.4,141.7,141.68,7.834]
[1718395027672,8.4,141.69,141.68,7.834]
[1718395029082,8.4,141.69,141.68,15.6685]
[1718395029871,8.4,141.69,141.68,26.1145]
[1718395030944,8.4,141.69,141.68,2.6113]
[1718395031279,8.4,141.69,141.68,7.8343]
[1718395031446,8.4,141.7,141.69,2.6113]
[1718395031646,10.4427,141.73,141.69,2.6113]
[1718395031879,10.4427,141.73,141.68,10.4454]
[1718395032048,8.4,141.7,141.68,2.6113]
[1718395032371,8.4,141.7,141.68,26.1147]
[1718395032943,8.4,141.7,141.68,7.8342]
[1718395033146,8.4,141.7,141.68,15.6687]
[1718395034479,8.4,141.7,141.68,26.1147]
[1718395035868,8.4,141.7,141.68,7.8342]
[1718395036173,23.4971,141.72,141.68,7.8342]
[1718395036386,8.4,141.7,141.68,15.6687]
[1718395037351,8.4,141.7,141.68,26.1147]
[1718395038005,8.4,141.7,141.69,2.6113]
[1718395038672,16.500908,141.74,141.7,26.1104]
[1718395038867,8.4,141.72,141.71,7.8327]
[1718395039377,8.4,141.72,141.7,26.1103]
[1718395039563,8.4,141.72,141.71,2.6109]
[1718395040386,8.4,141.72,141.71,7.8328]
[1718395040874,8.4,141.72,141.71,2.6109]
[1718395041083,8.4,141.72,141.7,26.1102]
[1718395041447,8.4,141.72,141.7,2.6109]
[1718395041653,8.4,141.71,141.7,7.8331]
[1718395042400,8.4,141.71,141.7,7.8332]
[1718395042564,0.838308,141.74,141.72,7.8322]
[1718395042759,0.838308,141.74,141.73,5.2211]
[1718395043076,0.838308,141.74,141.72,2.6107]
[1718395043462,8.4,141.73,141.72,7.8322]
[1718395043662,8.4,141.73,141.72,26.1076]
[1718395043868,0.838308,141.74,141.73,26.1056]
[1718395044271,9.238308,141.74,141.73,26.1056]
[1718395044473,9.238308,141.74,141.73,15.6633]
[1718395044679,9.238308,141.74,141.73,26.1056]
[1718395047291,0.838308,141.74,141.73,26.1056]
[1718395047478,0.838308,141.74,141.73,26.6156]
[1718395048359,0.838308,141.74,141.73,26.7856]
[1718395052274,0.838308,141.74,141.73,26.6156]
[1718395052786,9.238308,141.74,141.73,26.6156]
[1718395053199,0.838308,141.74,141.73,26.6156]
[1718395053788,0.838308,141.74,141.73,26.7856]
[1718395056699,0.838308,141.74,141.73,28.19640348]
[1718395057883,0.838308,141.74,141.73,26.7856]
[1718395063891,0.838308,141.74,141.73,26.1056]
[1718395065101,0.838308,141.74,141.73,26.6156]
[1718395065310,0.838308,141.74,141.73,26.7856]
[1718395066611,0.838308,141.74,141.73,35.1856]
[1718395067385,0.838308,141.74,141.73,26.7856]
[1718395068021,0.838308,141.74,141.73,35.1856]
[1718395070889,0.838308,141.74,141.73,26.7856]
[1718395071293,0.838308,141.74,141.73,35.1856]
[1718395073714,0.838308,141.74,141.73,26.7856]
[1718395075418,0.838308,141.74,141.73,35.1856]
[1718395076809,0.838308,141.74,141.73,26.7856]
[1718395077123,0.838308,141.74,141.73,35.1856]
[1718395078218,0.838308,141.74,141.73,26.7856]
[1718395078417,0.838308,141.74,141.73,35.1856]
[1718395080394,0.838308,141.74,141.73,26.7856]
[1718395082316,0.838308,141.74,141.73,35.1856]
[1718395084813,8e-06,141.74,141.73,35.1856]
[1718395085693,8e-06,141.74,141.73,156.4056]
[1718395086916,22.0815,141.83,141.81,7.8273]
[1718395087222,30.4815,141.83,141.82,15.6535]
[1718395087532,30.4815,141.83,141.82,26.0892]
[1718395087900,30.4815,141.83,141.82,15.6535]
[1718395088112,5.2179,141.82,141.79,2.6093]
[1718395088320,8.4,141.8,141.72,14.7893]
[1718395088523,8.4,141.78,141.77,15.6587]
[1718395088700,8.4,141.78,141.73,8.4]
[1718395088701,22.0815,141.83,141.79,13.0472]
[1718395088901,8.4,141.81,141.8,2.6092]
[1718395089400,30.4815,141.83,141.82,26.0892]
[1718395089606,22.0815,141.83,141.82,2.6089]
[1718395089813,30.4815,141.83,141.82,2.6089]
[1718395090542,22.0815,141.83,141.82,2.6089]
[1718395090710,30.4815,141.83,141.82,2.6089]
[1718395091614,30.9057,141.83,141.81,23.4818]
[1718395091816,30.9057,141.83,141.82,2.6089]
[1718395092313,30.9057,141.83,141.81,5.2181]
[1718395092501,30.9057,141.83,141.82,7.8267]
[1718395093038,30.9057,141.83,141.82,2.6089]
[1718395093625,30.9057,141.83,141.82,7.8267]
[1718395094327,30.9057,141.83,141.82,2.6089]
[1718395095621,30.9057,141.83,141.81,26.0902]
[1718395095928,8.4,141.82,141.81,2.609]
[1718395096701,8.4,141.82,141.81,7.8272]
[1718395097819,8.4,141.82,141.81,26.0909]
[1718395098025,22.5057,141.83,141.82,7.8267]
[1718395098227,30.9057,141.83,141.82,15.6535]
[1718395098719,30.9057,141.83,141.82,26.0892]
[1718395098919,30.9057,141.83,141.82,15.6535]
[1718395099124,30.9057,141.83,141.82,7.8267]
[1718395099936,30.9057,141.83,141.82,2.6089]
[1718395100131,22.5057,141.83,141.82,26.0892]
[1718395100632,22.5057,141.83,141.82,7.8267]
[1718395100633,30.9057,141.83,141.82,7.8267]
[1718395100822,30.9057,141.83,141.82,2.6089]
[1718395101206,30.9057,141.83,141.81,7.8268]
[1718395101424,8.4,141.82,141.81,7.8268]
[1718395101807,8.4,141.82,141.81,15.6541]
[1718395102417,8.4,141.82,141.73,21.1086]
[1718395102624,8.4,141.8,141.79,15.6565]
[1718395102925,48.5945,141.83,141.8,15.6557]
[1718395103124,8.4,141.81,141.8,7.8278]
[1718395103631,8.4,141.81,141.8,2.6092]
[1718395103830,8.4,141.81,141.79,26.0939]
[1718395104028,8.4,141.81,141.8,2.6093]
[1718395104218,8.4,141.81,141.8,7.8279]
[1718395105141,8.4,141.81,141.8,15.6558]
[1718395105433,8.4,141.81,141.8,7.8279]
[1718395107340,48.1703,141.83,141.8,7.8279]
[1718395107522,8.4,141.81,141.8,26.0929]
[1718395107717,8.4,141.81,141.8,2.6093]
[1718395107923,22.0815,141.83,141.76,8.4]
[1718395108130,22.0815,141.83,141.82,26.0892]
[1718395108435,30.4815,141.83,141.81,15.6544]
[1718395108640,8.4,141.82,141.81,15.6544]
[1718395109138,22.0815,141.83,141.81,15.6544]
[1718395109325,8.4,141.82,141.81,26.0908]
[1718395110928,15.4652,141.83,141.82,26.0892]
[1718395111124,43.1497,141.86,141.82,18.2625]
[1718395111329,30.1082,141.86,141.83,15.6521]
[1718395111536,8.4,141.84,141.83,15.6521]
[1718395111853,8.4,141.84,141.83,7.8259]
[1718395112446,8.8242,141.84,141.83,7.8259]
[1718395113056,8.8242,141.84,141.83,15.6521]
[1718395113646,8.8242,141.84,141.83,2.6086]
[1718395115145,8.8242,141.84,141.82,7.8264]
[1718395115339,8.8242,141.84,141.82,26.0886]
[1718395115536,8.4,141.83,141.82,26.0886]
[1718395115739,8.4,141.83,141.82,7.8263]
[1718395116537,8.4,141.83,141.81,2.609]
[1718395116737,16.8,141.82,141.73,14.7893]
[1718395116938,8.4,141.82,141.73,14.7893]
[1718395117152,2.609,141.82,141.8,2.6092]
[1718395117443,22.7594,141.83,141.82,2.6089]
[1718395117648,16.2107,141.83,141.82,20.8714]
[1718395117847,8.4,141.83,141.82,2.6089]
[1718395118069,8.4,141.83,141.82,26.0892]
[1718395118927,8.4,141.83,141.82,7.8267]
[1718395119743,8.4,141.83,141.82,15.6535]
[1718395119936,0.4242,141.84,141.83,15.6524]
[1718395120141,0.4242,141.84,141.83,26.7674]
[1718395138749,0.4242,141.84,141.83,35.1674]
[1718395140876,0.838308,141.89,141.83,9.08]
[1718395141177,0.838308,141.89,141.88,26.0782]
[1718395141344,0.838308,141.89,141.88,26.4182]
[1718395141546,9.238308,141.89,141.88,26.4182]
[1718395141749,0.838308,141.89,141.88,26.4182]
[1718395142862,9.238308,141.89,141.84,0.17]
[1718395143049,7.8237,141.88,141.86,2.608]
[1718395143254,8.4,141.87,141.86,7.8244]
[1718395143456,8.4,141.87,141.85,23.4751]
[1718395143677,8.4,141.87,141.86,26.082]
[1718395144202,5.2164,141.86,141.83,18.2609]
[1718395144479,5.2164,141.86,141.83,26.0868]
[1718395144480,8.4,141.84,141.83,26.0868]
[1718395145182,43.395308,141.89,141.86,7.8243]
[1718395145395,2.608,141.87,141.85,26.0835]
[1718395145673,8.4,141.86,141.85,7.8249]
[1718395145849,8.4,141.86,141.85,2.6082]
[1718395146271,16.2553,141.85,141.76,6.3466]
[1718395146585,16.2553,141.85,141.8,15.6557]
[1718395146586,8.4,141.81,141.8,15.6557]
[1718395146881,8.4,141.81,141.8,26.0929]
[1718395147081,26.6644,141.81,141.74,14.7893]
[1718395147295,8.4,141.79,141.72,6.1152]
[1718395147502,26.0881,141.83,141.8,7.8276]
[1718395147663,8.4,141.81,141.8,15.6555]
[1718395147985,6.1474,141.84,141.82,7.8266]
[1718395148283,8.4,141.83,141.82,2.6089]
[1718395148585,8.4,141.83,141.81,23.4809]
[1718395148586,11.0088,141.83,141.81,2.6089]
[1718395148794,18.8364,141.82,141.73,0.17]
[1718395148962,8.4,141.79,141.78,7.8288]
[1718395149288,8.7291993,141.79,141.78,26.0965]
[1718395149468,0.3291993,141.79,141.78,26.0965]
[1718395150067,0.3291993,141.79,141.78,26.4365]
[1718395150358,0.3291993,141.79,141.78,26.7765]
[1718395150684,0.3291993,141.79,141.78,26.6065]
[1718395151063,0.3291993,141.79,141.78,26.4365]
[1718395151558,0.3291993,141.79,141.76,8.95490389]
[1718395151788,8.4,141.78,141.77,7.8294]
[1718395151961,8.4,141.82,141.8,2.6092]
[1718395151962,36.2089,141.82,141.8,2.6092]
[1718395152277,8.4,141.81,141.8,26.0922]
[1718395152585,8.4,141.81,141.8,2.6092]
[1718395152786,8.4,141.81,141.8,7.8277]
[1718395152979,8.4,141.81,141.8,15.6556]
[1718395153279,16.2275,141.81,141.79,2.6094]
[1718395153480,8.4,141.8,141.79,2.6094]
[1718395153688,8.4,141.8,141.79,7.8283]
[1718395153871,8.4,141.8,141.79,26.0946]
[1718395154071,8.756,141.84,141.72,6.1152]
[1718395154262,8.4,141.82,141.77,8.4]
[1718395154562,6.1474,141.84,141.81,18.2637]
[1718395154563,11.3646,141.84,141.81,18.2637]
[1718395154765,8.4,141.82,141.81,2.6091]
[1718395154967,8.4,141.82,141.81,26.091]
[1718395155183,7.8274,141.81,141.79,2.6094]
[1718395155377,8.4,141.8,141.79,15.6567]
[1718395155976,8.4,141.8,141.79,26.0946]
[1718395156482,8.4,141.8,141.79,2.6094]
[1718395156661,8.4,141.8,141.79,7.8283]
[1718395156858,8.4,141.8,141.79,26.0946]
[1718395157065,8.4,141.8,141.75,10.4403]
[1718395157388,7.8284,141.79,141.77,2.6098]
[1718395157691,8.4,141.78,141.77,15.6589]
[1718395157899,2.6098,141.77,141.75,2.6101]
[1718395158062,2.6098,141.77,141.71,23.1893]
[1718395158063,8.4,141.76,141.71,14.7893]
[1718395158265,5.2195,141.78,141.74,7.8312]
[1718395158490,8.4,141.75,141.74,7.8312]
[1718395158684,23.4878,141.78,141.75,15.6609]
[1718395158883,8.4,141.76,141.75,26.1018]
[1718395159194,8.4,141.76,141.75,20.8815]
[1718395159365,8.4,141.76,141.74,2.6102]
[1718395159685,8.4,141.75,141.73,5.221]
[1718395159872,2.6101,141.76,141.74,2.6104]
[1718395160063,8.4,141.75,141.74,2.6104]
[1718395160465,8.4,141.75,141.73,26.1051]
[1718395160686,8.4,141.74,141.73,7.8314]
[1718395160899,8.4,141.74,141.73,26.1054]
[1718395161264,2.6098,141.77,141.75,2.61]
[1718395161465,8.4,141.76,141.75,2.61]
[1718395162281,8.4,141.76,141.74,23.4927]
[1718395162490,8.4,141.75,141.74,23.4927]
[1718395162687,8.4,141.75,141.74,26.1031]
[1718395162864,26.0971,141.78,141.75,26.1017]
[1718395163068,29.996,141.79,141.76,7.8299]
[1718395163285,8.4,141.77,141.76,15.6599]
[1718395163500,8.4,141.77,141.76,26.1]
[1718395163663,6.5099,141.79,141.76,7.83]
[1718395163868,6.5099,141.79,141.77,7.8292]
[1718395164089,8.4,141.78,141.77,15.6587]
[1718395164296,8.4,141.78,141.77,7.8292]
[1718395164498,8.4,141.78,141.69,0.17]
[1718395164702,8.4,141.75,141.71,13.0545]
[1718395164998,8.4,141.72,141.71,26.1093]
[1718395165167,8.4,141.73,141.72,26.1076]
[1718395166370,6.5099,141.79,141.68,8.4]
[1718395166576,7.829,141.78,141.75,2.6101]
[1718395166778,11.01,141.76,141.74,23.4931]
[1718395166994,11.0102,141.75,141.73,5.2209]
[1718395167189,8.4,141.74,141.73,7.8316]
[1718395167490,8.4,141.74,141.72,7.832]
[1718395167698,8.4,141.73,141.72,15.6643]
[1718395167990,8.4,141.73,141.71,2.6108]
[1718395168189,8.4,141.72,141.71,26.1089]
[1718395168494,8.4,141.72,141.64,6.5559]
[1718395168667,15.6636,141.73,141.7,26.1107]
[1718395168866,15.6636,141.73,141.7,18.2775]
[1718395168867,8.4,141.71,141.7,18.2775]
[1718395169074,8.4,141.71,141.7,7.833]
[1718395169381,8.4,141.71,141.7,15.6664]
[1718395169874,8.4,141.71,141.7,7.833]
[1718395170076,2.6112,141.7,141.68,2.6114]
[1718395170273,7.8331,141.71,141.68,26.115]
[1718395170508,6.1123,141.74,141.65,8.4]
[1718395170704,8.4,141.71,141.7,2.6111]
[1718395170994,8.4,141.71,141.7,26.1114]
[1718395171174,8.4,141.71,141.7,2.6111]
[1718395171374,8.4,141.71,141.7,7.8334]
[1718395172073,6.1123,141.74,141.73,26.1056]
[1718395172482,16.1322,141.75,141.74,2.6104]
[1718395172678,16.1322,141.75,141.74,26.104]
[1718395172879,24.5322,141.75,141.74,26.104]
[1718395173127,16.1322,141.75,141.74,26.104]
[1718395173400,24.5322,141.75,141.74,26.104]
[1718395173901,24.5322,141.75,141.73,26.1047]
[1718395174101,8.4,141.74,141.73,26.1047]
[1718395174875,8.4,141.74,141.73,7.8313]
[1718395175090,8.4,141.74,141.72,23.496]
[1718395175288,8.4,141.73,141.72,15.6643]
[1718395175499,8.4,141.73,141.72,2.6107]
[1718395175684,8.4,141.73,141.71,7.8325]
[1718395175880,50.6354,141.75,141.72,7.8322]
[1718395176200,16.2318,141.73,141.7,5.2221]
[1718395176409,2.6106,141.73,141.71,7.8327]
[1718395176612,8.4,141.72,141.71,7.8327]
[1718395176897,8.4,141.72,141.71,15.6655]
[1718395177278,11.0108,141.72,141.7,2.6111]
[1718395177479,8.4,141.71,141.66,0.17]
[1718395177682,15.664,141.73,141.7,7.8333]
[1718395177889,8.4,141.71,141.7,26.1113]
[1718395178115,16.1322,141.75,141.73,2.6105]
[1718395178304,16.1322,141.75,141.73,15.6632]
[1718395178486,16.1322,141.75,141.73,26.1052]
[1718395178686,8.4,141.74,141.73,26.1052]
[1718395179282,8.4,141.74,141.73,15.6632]
[1718395179591,8.4,141.74,141.73,26.1055]
[1718395180397,13.8988,141.77,141.74,23.4934]
[1718395180588,8.4,141.75,141.74,7.8308]
[1718395180785,8.4,141.75,141.74,26.1038]
[1718395181394,13.8988,141.77,141.75,2.6102]
[1718395181597,8.4,141.76,141.75,2.6102]
[1718395181788,24.0602,141.76,141.73,26.105]
[1718395182086,8.4,141.74,141.73,23.4946]
[1718395182291,8.4,141.74,141.73,26.105]
[1718395182494,8.4,141.74,141.73,7.8314]
[1718395182688,21.7284,141.77,141.73,18.273]
[1718395182987,2.61,141.76,141.74,7.8309]
[1718395183187,8.4,141.75,141.74,7.831]
[1718395183500,7.34927797,141.78,141.7,8.4]
[1718395183706,8.4,141.76,141.75,26.1021]
[1718395183908,8.4,141.76,141.74,26.1029]
[1718395184108,8.4,141.75,141.74,26.1029]
[1718395184601,8.4,141.76,141.75,15.6612]
[1718395184906,8.4,141.76,141.75,26.1021]
[1718395185295,2.6098,141.78,141.76,2.61]
[1718395185609,8.4,141.77,141.76,2.61]
[1718395186000,8.4,141.77,141.75,26.102]
[1718395186198,8.4,141.77,141.76,26.1002]
[1718395186398,18.6408,141.79,141.77,2.6097]
[1718395186704,18.6408,141.79,141.77,7.8294]
[1718395186705,8.4,141.78,141.77,7.8294]
[1718395187008,8.4,141.78,141.77,2.6097]
[1718395187211,8.4,141.78,141.77,26.0983]
[1718395187388,23.4823,141.81,141.78,7.8287]
[1718395187589,8.4,141.79,141.78,15.6577]
[1718395188305,26.0915,141.81,141.78,15.6577]
[1718395188510,8.4,141.79,141.78,2.6096]
[1718395188814,8.4,141.79,141.77,26.0974]
[1718395189011,8.4,141.78,141.77,26.0974]
[1718395189411,8.4,141.79,141.78,15.6577]
[1718395189589,8.4,141.79,141.78,26.0964]
[1718395189897,8.4,141.79,141.78,7.8287]
[1718395190098,8.4,141.79,141.78,2.6095]
[1718395190315,8.4,141.79,141.78,2.6096]
[1718395190490,8.4,141.79,141.78,15.6579]
[1718395190889,11.0095,141.79,141.77,2.6097]
[1718395191119,8.4,141.78,141.77,2.6097]
[1718395191327,8.4,141.78,141.77,7.8294]
[1718395191816,8.4,141.78,141.76,26.0992]
[1718395191988,23.484,141.8,141.77,2.6098]
[1718395192189,8.4,141.78,141.77,2.6098]
[1718395192389,8.4,141.78,141.76,2.6098]
[1718395192608,8.4,141.77,141.76,15.6599]
[1718395192800,8.4,141.77,141.76,26.1]
[1718395193396,8.4,141.77,141.76,26.27]
[1718395193586,5.2184,141.81,141.76,0.17]
[1718395193788,21.0946,141.82,141.79,2.6094]
[1718395194096,8.4,141.8,141.79,2.6094]
[1718395194509,8.4,141.8,141.78,23.4865]
[1718395194707,8.4,141.79,141.78,7.8287]
[1718395195007,8.4,141.79,141.78,2.6096]
[1718395195220,0.1603,141.81,141.78,10.4387]
[1718395195426,0.1603,141.81,141.76,0.17]
[1718395195427,0.1603,141.81,141.8,26.093]
[1718395195593,8.5603,141.81,141.8,26.093]
[1718395196713,8.5603,141.81,141.8,7.8279]
[1718395196898,8.5603,141.81,141.8,26.093]
[1718395197091,0.1603,141.81,141.8,26.433]
[1718395198420,0.26,141.81,141.8,26.603]
[1718395198626,8.66,141.81,141.8,0.34]
[1718395198821,8.66,141.81,141.78,5.219]
[1718395199009,0.26,141.81,141.79,7.8282]
[1718395199204,8.4,141.8,141.79,7.8282]
[1718395199518,8.4,141.8,141.79,26.0945]
[1718395199710,8.4,141.8,141.79,7.8282]
[1718395199916,8.4,141.8,141.79,2.6094]
[1718395200124,8.4,141.8,141.79,26.0946]
[1718395200327,0.26,141.81,141.8,26.093]
[1718395200628,0.26,141.81,141.8,26.773]
[1718395200837,0.26,141.81,141.8,35.173]
[1718395201051,0.26,141.81,141.8,26.773]
[1718395204603,0.26,141.81,141.8,2.6093]
[1718395204837,0.26,141.81,141.79,2.6094]
[1718395204838,2.8691,141.81,141.79,2.6094]
[1718395205010,8.0873,141.81,141.79,2.6094]
[1718395205345,0.26,141.81,141.8,26.093]
[1718395205841,0.26,141.81,141.79,7.828]
[1718395206004,13.0477,141.79,141.76,2.6099]
[1718395206204,10.4383,141.79,141.75,5.2203]
[1718395206433,23.4876,141.78,141.75,2.6102]
[1718395206613,15.3426,141.78,141.71,7.8325]
[1718395206813,15.3426,141.78,141.69,14.7893]
[1718395206814,2.6101,141.76,141.74,2.6104]
[1718395207028,2.6101,141.76,141.69,14.7893]
[1718395207029,15.3426,141.78,141.77,2.6098]
[1718395207226,15.3426,141.78,141.76,2.6098]
[1718395207429,15.3426,141.78,141.77,26.0984]
[1718395208038,15.3426,141.78,141.77,2.6098]
[1718395208223,15.3426,141.78,141.76,2.61]
[1718395208429,41.4396,141.78,141.75,2.6101]
[1718395208744,2.6098,141.77,141.74,26.1031]
[1718395208915,2.6098,141.77,141.74,23.4929]
[1718395209119,2.6098,141.77,141.75,2.6102]
[1718395209319,15.3426,141.78,141.76,2.61]
[1718395209515,17.9522,141.78,141.75,15.6611]
[1718395209715,2.6101,141.76,141.73,7.8314]
[1718395210022,2.6101,141.76,141.74,2.6104]
[1718395210221,2.6102,141.75,141.72,7.832]
[1718395210423,2.6102,141.75,141.73,2.6105]
[1718395210616,23.4912,141.76,141.73,2.6105]
[1718395210920,2.6108,141.72,141.69,7.8336]
[1718395211144,16.2214,141.72,141.71,2.6109]
[1718395211342,16.2214,141.72,141.7,23.4996]
[1718395211632,16.2214,141.72,141.62,14.7893]
[1718395211851,7.8329,141.71,141.62,14.7893]
[1718395212023,2.6112,141.7,141.62,14.7893]
[1718395212344,5.2221,141.71,141.68,2.6114]
[1718395212543,24.0539,141.72,141.69,2.6112]
[1718395212855,24.0537,141.72,141.69,7.8337]
[1718395213034,34.497,141.72,141.68,23.5026]
[1718395213239,7.8329,141.71,141.68,7.8342]
[1718395213454,2.7711,141.71,141.69,2.6112]
[1718395213747,0.1601,141.71,141.69,7.8338]
[1718395214158,7.9929,141.71,141.68,26.1143]
[1718395214326,2.6111,141.7,141.68,2.6113]
[1718395214528,26.3691,141.71,141.68,2.6113]
[1718395214736,23.758,141.71,141.68,7.8343]
[1718395215041,26.3691,141.71,141.68,2.6113]
[1718395215240,26.3691,141.71,141.68,7.8343]
[1718395215548,8.0923,141.71,141.68,15.6688]
[1718395215853,8.0923,141.71,141.68,7.8343]
[1718395216060,2.6112,141.7,141.67,26.1156]
[1718395216351,7.8334,141.7,141.67,26.1157]
[1718395216555,8.0924,141.71,141.68,7.8343]
[1718395216759,8.0924,141.71,141.68,15.6688]
[1718395217351,2.8703,141.71,141.68,23.5034]
[1718395217530,15.9251,141.71,141.68,7.8342]
[1718395218049,2.6111,141.7,141.68,2.6113]
[1718395218350,0.2593,141.71,141.69,2.6112]
[1718395218556,0.2593,141.71,141.7,26.1114]
[1718395218763,0.2593,141.71,141.7,26.6214]
[1718395219060,0.2593,141.71,141.7,7.8334]
[1718395219236,2.8703,141.71,141.69,2.6112]
[1718395219437,0.2593,141.71,141.7,7.8334]
[1718395219673,0.2593,141.71,141.69,23.5012]
[1718395219960,0.2593,141.71,141.69,26.1123]
[1718395220146,0.2593,141.71,141.69,23.5009]
[1718395220328,0.2593,141.71,141.69,26.112]
[1718395220730,0.2593,141.71,141.7,2.6111]
[1718395221336,0.2593,141.71,141.7,7.8334]
[1718395222765,0.2593,141.71,141.7,26.1114]
[1718395223244,0.2593,141.71,141.7,26.6214]
[1718395223445,0.2593,141.71,141.7,26.7914]
[1718395223656,21.8091,141.81,141.77,18.268]
[1718395223837,2.6095,141.79,141.77,2.6098]
[1718395224040,15.6571,141.79,141.76,7.8296]
[1718395224231,30.82959373,141.8,141.77,2.6098]
[1718395224440,2.6095,141.79,141.77,2.6098]
[1718395224836,2.6096,141.78,141.76,2.6099]
[1718395225034,15.657,141.79,141.76,7.8299]
[1718395225249,2.6097,141.78,141.76,2.6099]
[1718395225779,26.095,141.79,141.76,7.8299]
[1718395226058,7.829,141.78,141.75,7.8302]
[1718395226437,26.0952,141.79,141.76,2.61]
[1718395226754,2.6096,141.78,141.76,2.61]
[1718395227780,7.8289,141.78,141.75,7.8302]
[1718395228073,2.6098,141.77,141.75,2.61]
[1718395228636,2.6101,141.76,141.73,26.1051]
[1718395228864,7.8301,141.76,141.73,26.1051]
[1718395229259,25.07,141.79,141.68,14.7893]
[1718395229478,15.6572,141.79,141.76,2.6099]
[1718395229636,35.02459373,141.8,141.68,14.7893]
[1718395229836,35.02459373,141.8,141.79,7.8283]
[1718395229837,7.34529373,141.8,141.79,7.8283]
[1718395230036,7.8262,141.83,141.8,18.2647]
[1718395230243,32.7349,141.84,141.81,2.6091]
[1718395230466,9.2573,141.84,141.82,2.6089]
[1718395230761,14.4744,141.84,141.81,7.827]
[1718395231065,14.4744,141.84,141.81,15.6543]